[Event "Titled Tuesday Blitz May 4 2021"]
[White "Fier, Alexandr"]
[Black "Piesik, Piotr"]
[WhiteFideId "2107139"]
[BlackFideId "1136194"]
[WhiteElo "2569"]
[BlackElo "2369"]
[Result "1-0"]
[Round "05"]
[TimeControl "180+1"]
[Date "2021.05.04"]
[WhiteClock "0:01:08"]
[BlackClock "0:01:07"]

1. d4 {[%clk 0:03:00]}  c5 {[%clk 0:02:57]} 2. e4 {[%clk 0:03:00]}  cxd4 {[%clk 0:02:56]} 3. Nf3 {[%clk 0:03:00]}  d6 {[%clk 0:02:54]} 4. Nxd4 {[%clk 0:02:59]}  Nf6 {[%clk 0:02:54]} 5. Nc3 {[%clk 0:02:59]}  a6 {[%clk 0:02:54]} 6. Bg5 {[%clk 0:02:58]}  e6 {[%clk 0:02:54]} 7. f4 {[%clk 0:02:57]}  h6 {[%clk 0:02:53]} 8. Bh4 {[%clk 0:02:57]}  Be7 {[%clk 0:02:53]} 9. Qf3 {[%clk 0:02:56]}  Qc7 {[%clk 0:02:51]} 10. O-O-O {[%clk 0:02:56]}  Nbd7 {[%clk 0:02:49]} 11. Be2 {[%clk 0:02:55]}  b5 {[%clk 0:02:47]} 12. e5 {[%clk 0:02:48]}  Bb7 {[%clk 0:02:46]} 13. Qg3 {[%clk 0:02:18]}  dxe5 {[%clk 0:02:38]} 14. f5 {[%clk 0:02:01]}  Rc8 {[%clk 0:01:52]} 15. Nxe6 {[%clk 0:01:46]}  fxe6 {[%clk 0:01:48]} 16. Qg6+ {[%clk 0:01:45]}  Kf8 {[%clk 0:01:42]} 17. fxe6 {[%clk 0:01:45]}  Kg8 {[%clk 0:01:42]} 18. Qf7+ {[%clk 0:01:32]}  Kh7 {[%clk 0:01:42]} 19. exd7 {[%clk 0:01:31]}  Ba3 {[%clk 0:01:24]} 20. Bxf6 {[%clk 0:01:23]}  Bxb2+ {[%clk 0:01:22]} 21. Kb1 {[%clk 0:01:23]}  Rhg8 {[%clk 0:01:17]} 22. Bd3+ {[%clk 0:01:08]}  Kh8 {[%clk 0:01:11]} 23. Qg6 {[%clk 0:01:08]}  e4 {[%clk 0:01:07]} 24. Qxh6# {[%clk 0:01:08]} 1-0


[Site "https://www.chess.com"]

[Event "Titled Tuesday Blitz May 4 2021"]
[White "Foerster-Yialamas, Lucas"]
[Black "Albuquerque Junior,Wellington S."]
[WhiteFideId "30901774"]
[BlackFideId "2151480"]
[WhiteElo "1744"]
[BlackElo "2042"]
[Result "1-0"]
[Round "05"]
[TimeControl "180+1"]
[Date "2021.05.04"]
[WhiteClock "0:01:54"]
[BlackClock "0:00:15"]

1. e4 {[%clk 0:02:59]}  c5 {[%clk 0:02:59]} 2. Nf3 {[%clk 0:02:58]}  d6 {[%clk 0:03:00]} 3. d4 {[%clk 0:02:58]}  cxd4 {[%clk 0:03:01]} 4. Nxd4 {[%clk 0:02:59]}  Nf6 {[%clk 0:03:01]} 5. Nc3 {[%clk 0:02:59]}  Nc6 {[%clk 0:03:01]} 6. Bg5 {[%clk 0:02:57]}  Bd7 {[%clk 0:03:01]} 7. f3 {[%clk 0:02:56]}  Rc8 {[%clk 0:03:00]} 8. Bxf6 {[%clk 0:02:52]}  gxf6 {[%clk 0:02:59]} 9. Qd2 {[%clk 0:02:44]}  h5 {[%clk 0:02:55]} 10. h4 {[%clk 0:02:41]}  a6 {[%clk 0:02:39]} 11. Nxc6 {[%clk 0:02:39]}  Bxc6 {[%clk 0:02:35]} 12. Bd3 {[%clk 0:02:35]}  Qb6 {[%clk 0:02:27]} 13. O-O-O {[%clk 0:02:29]}  e6 {[%clk 0:02:03]} 14. Kb1 {[%clk 0:02:27]}  Rd8 {[%clk 0:01:47]} 15. g4 {[%clk 0:02:23]}  d5 {[%clk 0:01:41]} 16. exd5 {[%clk 0:02:20]}  Bxd5 {[%clk 0:01:41]} 17. Qf4 {[%clk 0:02:20]}  e5 {[%clk 0:01:30]} 18. Qd2 {[%clk 0:02:14]}  Bb4 {[%clk 0:01:27]} 19. Nxd5 {[%clk 0:02:09]}  Rxd5 {[%clk 0:01:22]} 20. c3 {[%clk 0:02:10]}  Be7 {[%clk 0:01:01]} 21. Qe2 {[%clk 0:02:10]}  Kf8 {[%clk 0:00:43]} 22. gxh5 {[%clk 0:02:09]}  Rxh5 {[%clk 0:00:39]} 23. f4 {[%clk 0:02:10]}  Rh8 {[%clk 0:00:34]} 24. f5 {[%clk 0:02:07]}  Bd6 {[%clk 0:00:18]} 25. h5 {[%clk 0:02:08]}  Ke7 {[%clk 0:00:17]} 26. h6 {[%clk 0:02:08]}  Qd8 {[%clk 0:00:17]} 27. h7 {[%clk 0:02:06]}  Bc5 {[%clk 0:00:15]} 28. Bc4 {[%clk 0:02:05]}  Rxd1+ {[%clk 0:00:15]} 29. Rxd1 {[%clk 0:02:06]}  Qb6 {[%clk 0:00:15]} 30. Qh5 {[%clk 0:01:54]} 1-0


[Site "https://www.chess.com"]

[Event "Titled Tuesday Blitz May 4 2021"]
[White "Garcia Fuentes, Sergio Miguel"]
[Black "Rios Parra, Alejandro"]
[WhiteFideId "7300549"]
[BlackFideId "4400348"]
[WhiteElo "2167"]
[BlackElo "2188"]
[Result "0-1"]
[Round "05"]
[TimeControl "180+1"]
[Date "2021.05.04"]
[WhiteClock "0:00:02"]
[BlackClock "0:01:07"]

1. Nf3 {[%clk 0:03:00]}  Nf6 {[%clk 0:02:59]} 2. g3 {[%clk 0:03:01]}  b6 {[%clk 0:02:55]} 3. Bg2 {[%clk 0:03:01]}  Bb7 {[%clk 0:02:55]} 4. O-O {[%clk 0:03:01]}  c5 {[%clk 0:02:54]} 5. c4 {[%clk 0:03:00]}  e6 {[%clk 0:02:55]} 6. d4 {[%clk 0:02:54]}  Be7 {[%clk 0:02:56]} 7. d5 {[%clk 0:02:48]}  exd5 {[%clk 0:02:45]} 8. Nh4 {[%clk 0:02:47]}  g6 {[%clk 0:02:25]} 9. Nc3 {[%clk 0:02:23]}  O-O {[%clk 0:02:23]} 10. cxd5 {[%clk 0:02:03]}  d6 {[%clk 0:02:22]} 11. Bh6 {[%clk 0:01:56]}  Re8 {[%clk 0:02:19]} 12. e4 {[%clk 0:01:57]}  a6 {[%clk 0:02:19]} 13. a4 {[%clk 0:01:45]}  Nbd7 {[%clk 0:02:18]} 14. f4 {[%clk 0:01:37]}  Rb8 {[%clk 0:02:10]} 15. Re1 {[%clk 0:01:26]}  Qc7 {[%clk 0:02:05]} 16. Bg5 {[%clk 0:00:46]}  c4 {[%clk 0:01:49]} 17. Kh1 {[%clk 0:00:44]}  Nc5 {[%clk 0:01:38]} 18. e5 {[%clk 0:00:08]}  Nh5 {[%clk 0:01:26]} 19. Bf3 {[%clk 0:00:04]}  Ng7 {[%clk 0:01:20]} 20. Bxe7 {[%clk 0:00:03]}  Rxe7 {[%clk 0:01:11]} 21. Qd4 {[%clk 0:00:02]}  Nb3 {[%clk 0:01:09]} 22. Qf2 {[%clk 0:00:01]}  Nxa1 {[%clk 0:01:08]} 23. Rxa1 {[%clk 0:00:02]}  dxe5 {[%clk 0:01:08]} 24. d6 {[%clk 0:00:02]}  Qxd6 {[%clk 0:01:07]} 0-1


[Site "https://www.chess.com"]

[Event "Titled Tuesday Blitz May 4 2021"]
[White "Garcia Garcia, Alejandro"]
[Black "Rakshitta, Ravi"]
[WhiteFideId "3516334"]
[BlackFideId "25073230"]
[WhiteElo "2131"]
[BlackElo "1873"]
[Result "1-0"]
[Round "05"]
[TimeControl "180+1"]
[Date "2021.05.04"]
[WhiteClock "0:00:36"]
[BlackClock "0:00:13"]

1. d4 {[%clk 0:03:00]}  Nf6 {[%clk 0:02:59]} 2. c4 {[%clk 0:03:00]}  Nc6 {[%clk 0:02:52]} 3. Nc3 {[%clk 0:02:58]}  e5 {[%clk 0:02:50]} 4. d5 {[%clk 0:02:55]}  Ne7 {[%clk 0:02:50]} 5. g3 {[%clk 0:02:54]}  Ng6 {[%clk 0:02:49]} 6. Bg2 {[%clk 0:02:54]}  Bc5 {[%clk 0:02:47]} 7. Nf3 {[%clk 0:02:53]}  d6 {[%clk 0:02:45]} 8. Na4 {[%clk 0:02:48]}  Bb6 {[%clk 0:02:42]} 9. Nxb6 {[%clk 0:02:48]}  axb6 {[%clk 0:02:43]} 10. O-O {[%clk 0:02:48]}  O-O {[%clk 0:02:42]} 11. b3 {[%clk 0:02:47]}  Nd7 {[%clk 0:02:40]} 12. a4 {[%clk 0:02:43]}  f5 {[%clk 0:02:38]} 13. Bb2 {[%clk 0:02:40]}  Nf6 {[%clk 0:02:30]} 14. Ng5 {[%clk 0:02:37]}  Qe7 {[%clk 0:02:25]} 15. e3 {[%clk 0:02:31]}  h6 {[%clk 0:02:20]} 16. Ne6 {[%clk 0:02:31]}  Bxe6 {[%clk 0:02:19]} 17. dxe6 {[%clk 0:02:32]}  c6 {[%clk 0:02:19]} 18. Qh5 {[%clk 0:02:17]}  Kh7 {[%clk 0:01:38]} 19. Qxf5 {[%clk 0:02:11]}  Ne8 {[%clk 0:01:27]} 20. Qg4 {[%clk 0:02:07]}  Nf6 {[%clk 0:01:23]} 21. Qe2 {[%clk 0:02:03]}  Qxe6 {[%clk 0:01:23]} 22. Rad1 {[%clk 0:02:00]}  Rae8 {[%clk 0:01:21]} 23. Rd2 {[%clk 0:01:59]}  Qf5 {[%clk 0:01:16]} 24. e4 {[%clk 0:01:57]}  Qe6 {[%clk 0:01:08]} 25. Rfd1 {[%clk 0:01:57]}  Rd8 {[%clk 0:01:07]} 26. f3 {[%clk 0:01:57]}  Ne8 {[%clk 0:01:04]} 27. Rd3 {[%clk 0:01:54]}  Rd7 {[%clk 0:01:00]} 28. Qe3 {[%clk 0:01:50]}  c5 {[%clk 0:01:00]} 29. h4 {[%clk 0:01:40]}  Ne7 {[%clk 0:01:00]} 30. Kh2 {[%clk 0:01:39]}  Nc6 {[%clk 0:01:00]} 31. Bh3 {[%clk 0:01:39]}  Qe7 {[%clk 0:00:55]} 32. Bxd7 {[%clk 0:01:37]}  Qxd7 {[%clk 0:00:56]} 33. Rg1 {[%clk 0:01:21]}  Nd4 {[%clk 0:00:55]} 34. f4 {[%clk 0:01:22]}  Nc7 {[%clk 0:00:52]} 35. f5 {[%clk 0:01:16]}  Qe7 {[%clk 0:00:41]} 36. Bxd4 {[%clk 0:00:50]}  cxd4 {[%clk 0:00:39]} 37. Qe1 {[%clk 0:00:50]}  Na6 {[%clk 0:00:38]} 38. g4 {[%clk 0:00:44]}  Nc5 {[%clk 0:00:33]} 39. Rh3 {[%clk 0:00:44]}  Qd7 {[%clk 0:00:26]} 40. g5 {[%clk 0:00:43]}  Qc6 {[%clk 0:00:23]} 41. gxh6 {[%clk 0:00:40]}  gxh6 {[%clk 0:00:22]} 42. Qg3 {[%clk 0:00:36]}  Qd7 {[%clk 0:00:13]} 43. Qg6+ {[%clk 0:00:35]}  Kh8 {[%clk 0:00:13]} 44. Qxh6+ {[%clk 0:00:36]}  Qh7 {[%clk 0:00:13]} 45. Qxf8+ {[%clk 0:00:36]}  Qg8 {[%clk 0:00:13]} 46. Qxg8# {[%clk 0:00:36]} 1-0


[Site "https://www.chess.com"]

[Event "Titled Tuesday Blitz May 4 2021"]
[White "Gazis, Efstathios"]
[Black "Mayeregger, Arnold"]
[WhiteFideId "4200659"]
[BlackFideId "3705226"]
[WhiteElo "2231"]
[BlackElo "1567"]
[Result "1-0"]
[Round "05"]
[TimeControl "180+1"]
[Date "2021.05.04"]
[WhiteClock "0:01:32"]
[BlackClock "0:01:51"]

1. e4 {[%clk 0:03:00]}  c5 {[%clk 0:02:59]} 2. Nf3 {[%clk 0:03:00]}  e6 {[%clk 0:02:59]} 3. d4 {[%clk 0:03:00]}  cxd4 {[%clk 0:03:00]} 4. Nxd4 {[%clk 0:03:00]}  a6 {[%clk 0:03:01]} 5. c4 {[%clk 0:03:00]}  Qc7 {[%clk 0:03:02]} 6. Nc3 {[%clk 0:03:00]}  Nf6 {[%clk 0:03:02]} 7. Be2 {[%clk 0:02:59]}  Be7 {[%clk 0:03:00]} 8. f4 {[%clk 0:02:57]}  d6 {[%clk 0:02:59]} 9. Qd3 {[%clk 0:02:53]}  O-O {[%clk 0:02:58]} 10. a3 {[%clk 0:02:52]}  Nbd7 {[%clk 0:02:58]} 11. b4 {[%clk 0:02:52]}  b6 {[%clk 0:02:59]} 12. Bb2 {[%clk 0:02:51]}  Bb7 {[%clk 0:02:59]} 13. Rc1 {[%clk 0:02:52]}  Rac8 {[%clk 0:02:57]} 14. O-O {[%clk 0:02:52]}  Ba8 {[%clk 0:02:56]} 15. g4 {[%clk 0:02:45]}  Nb8 {[%clk 0:02:43]} 16. g5 {[%clk 0:02:42]}  Nfd7 {[%clk 0:02:41]} 17. h4 {[%clk 0:02:31]}  Nc6 {[%clk 0:02:41]} 18. Nd5 {[%clk 0:02:23]}  exd5 {[%clk 0:02:19]} 19. cxd5 {[%clk 0:02:20]}  Nxd4 {[%clk 0:02:20]} 20. Qxd4 {[%clk 0:02:14]}  f6 {[%clk 0:02:09]} 21. Rxc7 {[%clk 0:02:10]}  Rxc7 {[%clk 0:02:10]} 22. Bg4 {[%clk 0:02:09]}  Rfc8 {[%clk 0:02:05]} 23. h5 {[%clk 0:01:55]}  Bf8 {[%clk 0:02:02]} 24. h6 {[%clk 0:01:51]}  Rc4 {[%clk 0:01:56]} 25. Qd3 {[%clk 0:01:49]}  R8c7 {[%clk 0:01:51]} 26. Bxd7 {[%clk 0:01:32]} 1-0


[Site "https://www.chess.com"]

[Event "Titled Tuesday Blitz May 4 2021"]
[White "Gedgafov, Chamal"]
[Black "Pesotskiy, Mikhail"]
[WhiteFideId "34130621"]
[BlackFideId "34164453"]
[WhiteElo "2005"]
[BlackElo "2052"]
[Result "0-1"]
[Round "05"]
[TimeControl "180+1"]
[Date "2021.05.04"]
[WhiteClock "0:01:31"]
[BlackClock "0:01:56"]

1. d4 {[%clk 0:03:00]}  Nf6 {[%clk 0:03:00]} 2. c4 {[%clk 0:02:59]}  e6 {[%clk 0:03:00]} 3. Nc3 {[%clk 0:02:56]}  Bb4 {[%clk 0:03:01]} 4. e3 {[%clk 0:02:56]}  b6 {[%clk 0:03:01]} 5. Ne2 {[%clk 0:02:57]}  Bb7 {[%clk 0:03:01]} 6. a3 {[%clk 0:02:57]}  Be7 {[%clk 0:03:00]} 7. d5 {[%clk 0:02:54]}  O-O {[%clk 0:03:01]} 8. Ng3 {[%clk 0:02:51]}  Bd6 {[%clk 0:03:01]} 9. Be2 {[%clk 0:02:50]}  c6 {[%clk 0:02:59]} 10. Bf3 {[%clk 0:02:49]}  Be5 {[%clk 0:02:55]} 11. dxe6 {[%clk 0:02:37]}  dxe6 {[%clk 0:02:52]} 12. Bd2 {[%clk 0:02:31]}  Nbd7 {[%clk 0:02:45]} 13. b4 {[%clk 0:02:29]}  a5 {[%clk 0:02:38]} 14. b5 {[%clk 0:02:26]}  Qc8 {[%clk 0:02:38]} 15. Rc1 {[%clk 0:02:18]}  cxb5 {[%clk 0:02:38]} 16. Nxb5 {[%clk 0:02:04]}  Nc5 {[%clk 0:02:38]} 17. O-O {[%clk 0:01:56]}  Bxf3 {[%clk 0:02:03]} 18. Qxf3 {[%clk 0:01:53]}  Nb3 {[%clk 0:02:04]} 19. Rc2 {[%clk 0:01:39]}  Nxd2 {[%clk 0:02:04]} 20. Rxd2 {[%clk 0:01:40]}  Qxc4 {[%clk 0:02:05]} 21. Rb1 {[%clk 0:01:35]}  Rad8 {[%clk 0:01:57]} 22. Rxd8 {[%clk 0:01:31]}  Rxd8 {[%clk 0:01:58]} 23. Ne2 {[%clk 0:01:31]}  Qxb5 {[%clk 0:01:56]} 0-1


[Site "https://www.chess.com"]

[Event "Titled Tuesday Blitz May 4 2021"]
[White "Gombocz, Ferenc Jr."]
[Black "Golsta, Madara"]
[WhiteFideId "775029"]
[BlackFideId "11607386"]
[WhiteElo "1913"]
[BlackElo "1880"]
[Result "1-0"]
[Round "05"]
[TimeControl "180+1"]
[Date "2021.05.04"]
[WhiteClock "0:02:43"]
[BlackClock "0:01:49"]

1. c4 {[%clk 0:03:00]}  c5 {[%clk 0:02:58]} 2. g3 {[%clk 0:03:00]}  g6 {[%clk 0:02:57]} 3. Bg2 {[%clk 0:03:01]}  Bg7 {[%clk 0:02:58]} 4. Nc3 {[%clk 0:03:02]}  Nc6 {[%clk 0:02:58]} 5. a3 {[%clk 0:03:02]}  e6 {[%clk 0:02:55]} 6. b4 {[%clk 0:03:01]}  cxb4 {[%clk 0:02:53]} 7. axb4 {[%clk 0:03:01]}  Nxb4 {[%clk 0:02:48]} 8. Ba3 {[%clk 0:03:01]}  Nc6 {[%clk 0:02:46]} 9. Nb5 {[%clk 0:03:00]}  Nge7 {[%clk 0:02:36]} 10. Bd6 {[%clk 0:03:00]}  O-O {[%clk 0:02:33]} 11. Bc7 {[%clk 0:02:59]}  Bxa1 {[%clk 0:01:49]} 12. Bxd8 {[%clk 0:02:43]} 1-0


[Site "https://www.chess.com"]

[Event "Titled Tuesday Blitz May 4 2021"]
[White "Hartikainen, Jarmo"]
[Black "Volkov, Maksim"]
[WhiteFideId "503134"]
[BlackFideId "54123070"]
[WhiteElo "2057"]
[BlackElo "2113"]
[Result "0-1"]
[Round "05"]
[TimeControl "180+1"]
[Date "2021.05.04"]
[WhiteClock "0:00:03"]
[BlackClock "0:01:01"]

1. e4 {[%clk 0:03:00]}  c5 {[%clk 0:02:59]} 2. Nf3 {[%clk 0:03:00]}  e6 {[%clk 0:02:59]} 3. d4 {[%clk 0:03:01]}  cxd4 {[%clk 0:03:00]} 4. Nxd4 {[%clk 0:03:01]}  a6 {[%clk 0:03:00]} 5. Nc3 {[%clk 0:03:01]}  Qc7 {[%clk 0:03:00]} 6. Bd3 {[%clk 0:03:01]}  Nf6 {[%clk 0:02:59]} 7. Be3 {[%clk 0:03:00]}  d6 {[%clk 0:02:54]} 8. O-O {[%clk 0:02:55]}  Be7 {[%clk 0:02:53]} 9. a4 {[%clk 0:02:49]}  b6 {[%clk 0:02:52]} 10. f4 {[%clk 0:02:37]}  Nbd7 {[%clk 0:02:50]} 11. Kh1 {[%clk 0:02:16]}  Bb7 {[%clk 0:02:50]} 12. Qe2 {[%clk 0:02:06]}  O-O {[%clk 0:02:49]} 13. Rae1 {[%clk 0:02:04]}  Rfe8 {[%clk 0:02:48]} 14. Bc1 {[%clk 0:01:40]}  Qc5 {[%clk 0:02:34]} 15. Nb3 {[%clk 0:01:30]}  Qh5 {[%clk 0:02:33]} 16. Qxh5 {[%clk 0:01:18]}  Nxh5 {[%clk 0:02:32]} 17. e5 {[%clk 0:01:12]}  dxe5 {[%clk 0:02:17]} 18. fxe5 {[%clk 0:01:11]}  g6 {[%clk 0:02:18]} 19. Bh6 {[%clk 0:00:37]}  Bf8 {[%clk 0:02:06]} 20. Bxf8 {[%clk 0:00:35]}  Rxf8 {[%clk 0:02:06]} 21. Kg1 {[%clk 0:00:28]}  Rfd8 {[%clk 0:02:00]} 22. Re3 {[%clk 0:00:24]}  Rac8 {[%clk 0:01:53]} 23. Nd2 {[%clk 0:00:22]}  Nc5 {[%clk 0:01:49]} 24. Nde4 {[%clk 0:00:17]}  Bxe4 {[%clk 0:01:37]} 25. Nxe4 {[%clk 0:00:15]}  Nxe4 {[%clk 0:01:33]} 26. Rxe4 {[%clk 0:00:16]}  a5 {[%clk 0:01:29]} 27. g4 {[%clk 0:00:16]}  Ng7 {[%clk 0:01:29]} 28. Ref4 {[%clk 0:00:16]}  Rc7 {[%clk 0:01:29]} 29. h4 {[%clk 0:00:15]}  h5 {[%clk 0:01:26]} 30. Kg2 {[%clk 0:00:15]}  hxg4 {[%clk 0:01:25]} 31. Rxg4 {[%clk 0:00:15]}  Kh7 {[%clk 0:01:24]} 32. Rgf4 {[%clk 0:00:14]}  Nf5 {[%clk 0:01:24]} 33. Bxf5 {[%clk 0:00:14]}  exf5 {[%clk 0:01:23]} 34. R1f2 {[%clk 0:00:14]}  Rc5 {[%clk 0:01:20]} 35. Re2 {[%clk 0:00:12]}  Re8 {[%clk 0:01:19]} 36. b4 {[%clk 0:00:12]}  Rcxe5 {[%clk 0:01:18]} 37. Rxe5 {[%clk 0:00:11]}  Rxe5 {[%clk 0:01:19]} 38. bxa5 {[%clk 0:00:11]}  bxa5 {[%clk 0:01:17]} 39. Rc4 {[%clk 0:00:11]}  Kh6 {[%clk 0:01:13]} 40. Kf3 {[%clk 0:00:10]}  Kh5 {[%clk 0:01:12]} 41. Rc7 {[%clk 0:00:09]}  Kxh4 {[%clk 0:01:10]} 42. c4 {[%clk 0:00:09]}  g5 {[%clk 0:01:08]} 43. c5 {[%clk 0:00:08]}  Re4 {[%clk 0:01:07]} 44. Rc8 {[%clk 0:00:08]}  g4+ {[%clk 0:01:06]} 45. Kg2 {[%clk 0:00:06]}  Kg5 {[%clk 0:01:04]} 46. c6 {[%clk 0:00:06]}  Kf4 {[%clk 0:01:03]} 47. c7 {[%clk 0:00:06]}  Rc4 {[%clk 0:01:04]} 48. Kf2 {[%clk 0:00:04]}  Rc2+ {[%clk 0:01:02]} 49. Ke1 {[%clk 0:00:03]}  Kf3 {[%clk 0:01:01]} 0-1


[Site "https://www.chess.com"]

[Event "Titled Tuesday Blitz May 4 2021"]
[White "Hasangatin, Ramil"]
[Black "Gabrielian, Artur"]
[WhiteFideId "4122160"]
[BlackFideId "4131002"]
[WhiteElo "2430"]
[BlackElo "2539"]
[Result "0-1"]
[Round "05"]
[TimeControl "180+1"]
[Date "2021.05.04"]
[WhiteClock "0:00:01"]
[BlackClock "0:00:12"]

1. e4 {[%clk 0:03:00]}  c5 {[%clk 0:02:58]} 2. Nf3 {[%clk 0:03:00]}  d6 {[%clk 0:02:58]} 3. d4 {[%clk 0:02:59]}  cxd4 {[%clk 0:02:58]} 4. Qxd4 {[%clk 0:03:00]}  Nc6 {[%clk 0:02:58]} 5. Bb5 {[%clk 0:02:59]}  Bd7 {[%clk 0:02:58]} 6. Bxc6 {[%clk 0:02:59]}  Bxc6 {[%clk 0:02:58]} 7. Nc3 {[%clk 0:02:59]}  Nf6 {[%clk 0:02:58]} 8. Bg5 {[%clk 0:02:59]}  e6 {[%clk 0:02:58]} 9. O-O-O {[%clk 0:03:00]}  Be7 {[%clk 0:02:58]} 10. Rhe1 {[%clk 0:03:00]}  O-O {[%clk 0:02:57]} 11. Qd2 {[%clk 0:03:00]}  h6 {[%clk 0:02:49]} 12. Bf4 {[%clk 0:02:59]}  d5 {[%clk 0:02:31]} 13. Ne5 {[%clk 0:02:55]}  Rc8 {[%clk 0:02:25]} 14. Kb1 {[%clk 0:02:42]}  dxe4 {[%clk 0:02:14]} 15. Nxc6 {[%clk 0:02:40]}  Rxc6 {[%clk 0:02:09]} 16. Qxd8 {[%clk 0:02:38]}  Rxd8 {[%clk 0:02:07]} 17. Rxd8+ {[%clk 0:02:37]}  Bxd8 {[%clk 0:02:07]} 18. Nxe4 {[%clk 0:02:37]}  Nd5 {[%clk 0:02:05]} 19. Bd2 {[%clk 0:02:31]}  Bc7 {[%clk 0:01:39]} 20. g3 {[%clk 0:02:22]}  b5 {[%clk 0:01:38]} 21. Nc3 {[%clk 0:02:18]}  Nxc3+ {[%clk 0:01:37]} 22. Bxc3 {[%clk 0:02:19]}  Bb6 {[%clk 0:01:35]} 23. Re2 {[%clk 0:02:04]}  Rd6 {[%clk 0:01:25]} 24. Kc1 {[%clk 0:02:04]}  Rd5 {[%clk 0:01:13]} 25. Bd2 {[%clk 0:01:52]}  g5 {[%clk 0:01:10]} 26. Be3 {[%clk 0:01:49]}  Bxe3+ {[%clk 0:01:05]} 27. Rxe3 {[%clk 0:01:50]}  a5 {[%clk 0:01:05]} 28. g4 {[%clk 0:01:24]}  h5 {[%clk 0:01:01]} 29. h3 {[%clk 0:01:24]}  Kg7 {[%clk 0:00:58]} 30. f3 {[%clk 0:01:16]}  h4 {[%clk 0:00:56]} 31. Re4 {[%clk 0:01:11]}  Kg6 {[%clk 0:00:46]} 32. c4 {[%clk 0:01:05]}  bxc4 {[%clk 0:00:44]} 33. Rxc4 {[%clk 0:01:06]}  f5 {[%clk 0:00:45]} 34. Kc2 {[%clk 0:01:04]}  Kf6 {[%clk 0:00:45]} 35. a3 {[%clk 0:00:57]}  Re5 {[%clk 0:00:39]} 36. Kd2 {[%clk 0:00:53]}  f4 {[%clk 0:00:38]} 37. b4 {[%clk 0:00:50]}  axb4 {[%clk 0:00:39]} 38. axb4 {[%clk 0:00:51]}  Rd5+ {[%clk 0:00:38]} 39. Kc2 {[%clk 0:00:43]}  Re5 {[%clk 0:00:35]} 40. Kd2 {[%clk 0:00:33]}  Rd5+ {[%clk 0:00:33]} 41. Kc2 {[%clk 0:00:33]}  Ke5 {[%clk 0:00:29]} 42. Rc8 {[%clk 0:00:21]}  Kd4 {[%clk 0:00:20]} 43. Kd2 {[%clk 0:00:15]}  e5 {[%clk 0:00:19]} 44. Ke2 {[%clk 0:00:12]}  Rd6 {[%clk 0:00:16]} 45. Rc1 {[%clk 0:00:11]}  Rb6 {[%clk 0:00:15]} 46. Rb1 {[%clk 0:00:08]}  Rb5 {[%clk 0:00:15]} 47. Rd1+ {[%clk 0:00:06]}  Kc4 {[%clk 0:00:15]} 48. Rc1+ {[%clk 0:00:06]}  Kd4 {[%clk 0:00:15]} 49. Rd1+ {[%clk 0:00:05]}  Kc4 {[%clk 0:00:15]} 50. Rc1+ {[%clk 0:00:06]}  Kd5 {[%clk 0:00:16]} 51. Rd1+ {[%clk 0:00:05]}  Kc6 {[%clk 0:00:16]} 52. Rc1+ {[%clk 0:00:06]}  Kb6 {[%clk 0:00:15]} 53. Rc4 {[%clk 0:00:06]}  Rd5 {[%clk 0:00:15]} 54. Rc8 {[%clk 0:00:05]}  Kb5 {[%clk 0:00:13]} 55. Rb8+ {[%clk 0:00:05]}  Kc4 {[%clk 0:00:14]} 56. Rc8+ {[%clk 0:00:05]}  Kxb4 {[%clk 0:00:14]} 57. Rg8 {[%clk 0:00:05]}  Ra5 {[%clk 0:00:12]} 58. Rxg5 {[%clk 0:00:05]}  Kc4 {[%clk 0:00:13]} 59. Rh5 {[%clk 0:00:03]}  Ra2+ {[%clk 0:00:12]} 60. Ke1 {[%clk 0:00:02]}  Kd4 {[%clk 0:00:12]} 61. g5 {[%clk 0:00:01]}  Ke3 {[%clk 0:00:13]} 62. Kd1 {[%clk 0:00:02]}  Rg2 {[%clk 0:00:12]} 63. Rxh4 {[%clk 0:00:01]}  Rxg5 {[%clk 0:00:12]} 64. Rg4 {[%clk 0:00:01]}  Rh5 {[%clk 0:00:12]} 0-1


[Site "https://www.chess.com"]

[Event "Titled Tuesday Blitz May 4 2021"]
[White "Holt, Conrad"]
[Black "Kalashian, David"]
[WhiteFideId "2034387"]
[BlackFideId "13302418"]
[WhiteElo "2586"]
[BlackElo "2490"]
[Result "0-1"]
[Round "05"]
[TimeControl "180+1"]
[Date "2021.05.04"]
[WhiteClock "0:00:04"]
[BlackClock "0:00:09"]

1. d4 {[%clk 0:03:00]}  Nf6 {[%clk 0:02:58]} 2. c4 {[%clk 0:03:01]}  e6 {[%clk 0:02:58]} 3. Nc3 {[%clk 0:03:01]}  Bb4 {[%clk 0:02:58]} 4. Qc2 {[%clk 0:03:02]}  c5 {[%clk 0:02:56]} 5. dxc5 {[%clk 0:03:02]}  O-O {[%clk 0:02:56]} 6. a3 {[%clk 0:03:01]}  Bxc5 {[%clk 0:02:55]} 7. Bf4 {[%clk 0:03:02]}  b6 {[%clk 0:02:54]} 8. Nf3 {[%clk 0:03:01]}  Bb7 {[%clk 0:02:42]} 9. Rd1 {[%clk 0:03:00]}  Nh5 {[%clk 0:02:32]} 10. Bg3 {[%clk 0:02:51]}  Be7 {[%clk 0:02:28]} 11. e4 {[%clk 0:02:48]}  a6 {[%clk 0:02:24]} 12. Be2 {[%clk 0:02:47]}  Nxg3 {[%clk 0:02:08]} 13. hxg3 {[%clk 0:02:47]}  h6 {[%clk 0:01:55]} 14. e5 {[%clk 0:02:34]}  Qc7 {[%clk 0:01:35]} 15. Ne4 {[%clk 0:02:31]}  Nc6 {[%clk 0:01:30]} 16. Neg5 {[%clk 0:02:28]}  g6 {[%clk 0:01:16]} 17. Rxh6 {[%clk 0:02:13]}  Nxe5 {[%clk 0:01:12]} 18. Rxd7 {[%clk 0:02:13]}  Nxf3+ {[%clk 0:00:26]} 19. gxf3 {[%clk 0:02:13]}  Bb4+ {[%clk 0:00:23]} 20. axb4 {[%clk 0:01:51]}  Qxd7 {[%clk 0:00:24]} 21. Qc3 {[%clk 0:01:46]}  f6 {[%clk 0:00:20]} 22. Rxg6+ {[%clk 0:01:45]}  Kh8 {[%clk 0:00:20]} 23. Rh6+ {[%clk 0:00:48]}  Kg8 {[%clk 0:00:18]} 24. Rh7 {[%clk 0:00:48]}  Qd6 {[%clk 0:00:14]} 25. Rxb7 {[%clk 0:00:38]}  Rad8 {[%clk 0:00:13]} 26. c5 {[%clk 0:00:32]}  bxc5 {[%clk 0:00:13]} 27. bxc5 {[%clk 0:00:32]}  Qd5 {[%clk 0:00:13]} 28. c6 {[%clk 0:00:21]}  Qxg5 {[%clk 0:00:12]} 29. Bc4 {[%clk 0:00:10]}  Rfe8 {[%clk 0:00:10]} 30. c7 {[%clk 0:00:09]}  Rc8 {[%clk 0:00:11]} 31. f4 {[%clk 0:00:05]}  Qf5 {[%clk 0:00:11]} 32. Bd3 {[%clk 0:00:04]}  Qd5 {[%clk 0:00:11]} 33. Bh7+ {[%clk 0:00:04]}  Kxh7 {[%clk 0:00:09]} 34. Qc2+ {[%clk 0:00:03]}  Kg7 {[%clk 0:00:09]} 35. Rb6 {[%clk 0:00:03]}  f5 {[%clk 0:00:08]} 36. Rc6 {[%clk 0:00:02]}  Qe4+ {[%clk 0:00:08]} 37. Qxe4 {[%clk 0:00:02]}  fxe4 {[%clk 0:00:09]} 38. Ke2 {[%clk 0:00:02]}  Re7 {[%clk 0:00:09]} 39. Ke3 {[%clk 0:00:03]}  Rexc7 {[%clk 0:00:10]} 40. Rxa6 {[%clk 0:00:03]}  Rc2 {[%clk 0:00:11]} 41. Rxe6 {[%clk 0:00:02]}  Rxb2 {[%clk 0:00:11]} 42. Kxe4 {[%clk 0:00:03]}  Re2+ {[%clk 0:00:10]} 43. Kf5 {[%clk 0:00:03]}  Rxe6 {[%clk 0:00:09]} 44. Kxe6 {[%clk 0:00:04]}  Re8+ {[%clk 0:00:09]} 45. Kf5 {[%clk 0:00:04]}  Ra8 {[%clk 0:00:08]} 46. f3 {[%clk 0:00:03]}  Ra5+ {[%clk 0:00:08]} 47. Kg4 {[%clk 0:00:03]}  Ra3 {[%clk 0:00:08]} 48. f5 {[%clk 0:00:03]}  Kf6 {[%clk 0:00:09]} 49. Kf4 {[%clk 0:00:03]}  Ra4+ {[%clk 0:00:09]} 50. Ke3 {[%clk 0:00:04]}  Kxf5 {[%clk 0:00:09]} 0-1


[Site "https://www.chess.com"]